Workbook

Sheet Feuil1
B3: Rentabilité de l'isolation d'un ballon d'eau chaude | J3: UCL, version septembre 2016 - Mis à jour en 2023
B4: - encodez les données relatives à votre situation dans les cases bleues.
B5: - les résultats sont repris dans les cases jaunes.
B7: Préalable : évaluation de la surface de l'enveloppe :
B11: -soit dimensions | C11: Hauteur | D11: 1.4 | E11: m
C12: Diamètre | D12: 1 | E12: m
C13: Volume | D13: =3.14*D12*D12*D11*1000/4 -> 1099 | E13: litres
C14: Surface | D14: =3.14*D12*D11+3.14*D12*D12/2 -> 5.966 | E14: m²
B16: -soit capacité du réservoir | D16: 1000 | E16: litres
C17: Surface approx. | D17: =2.5*3.14*(2*D16/(1000*3.14))^(2/3) -> 5.811254406 | E17: m² | G17: (formule empirique basée sur Hauteur = 2 x Diamètre)
B20: Valeur choisie pour le calcul :
B22: Capacité du réservoir | D22: 1000 | E22: litres
B23: Enveloppe (val. choisie ) | D23: 6 | E23: m²
B24: T° moyenne de l'eau | D24: 60 | E24: °C
B25: T° moyenne de l'ambiance | D25: 15 | E25: °C
B26: Nbre heures fonct. | D26: 8760 | E26: heures | G26: (8760 h/an = fonctionnement permanent)
B27: Prix du kWh | D27: 0.22 | E27: Euro/kWh | G27: =HYPERLINK("http://www.compacwape.be/proc/simulation;jsessionid=C14536CD2D98B7C63878A3F627E66C4D?execution=e1s4","Par défaut : 0,22 €/kWh pour électricité") -> Par défaut : 0,22 €/kWh pour électricité
G28: (rendement compris)
B30: Solution 1 | G30: Solution 2
B31: Matériau isolant | G31: Matériau isolant | N31: Matériau isolant | P31: Lambda | Q31: Cellule cible
B32: Lambda Isolant | D32: =INDEX(N32:P35,Q32,3) -> 0.035 | E32: W/m.K | G32: Lambda Isolant | I32: =INDEX(N32:P35,Q33,3) -> 0.03 | J32: W/m.K | N32: aucun isolant | P32: aucun | Q32: 4
B33: Epaisseur | D33: 5 | E33: cm | G33: Epaisseur | I33: 10 | J33: cm | N33: laine minérale | P33: 0.04 | Q33: 3
B34: Coût de l'isolation | D34: 100 | E34: Euro | G34: Coût de l'isolation | I34: 200 | J34: Euro | N34: polyuréthanne PUR | P34: 0.03
B35: Coefficient k | D35: =IF(D32="aucun",10,1/(D33/(D32*100)+0.1)) -> 0.6542056075 | E35: W/m².K | G35: Coefficient k | I35: =IF(I32="aucun",10,1/(I33/(I32*100)+0.1)) -> 0.2912621359 | J35: W/m².K | N35: polystyrène | P35: 0.035
B36: Puissance | D36: =+D35*D23*(D24-D25) -> 176.635514 | E36: W | G36: Puissance | I36: =+I35*D23*(D24-D25) -> 78.6407767 | J36: W
B37: Déperdition annuelle | D37: =+D26*D36/1000 -> 1547.327103 | E37: kWh/an | G37: Déperdition annuelle | I37: =+I36*D26/1000 -> 688.8932039 | J37: kWh/an
B38: Coût des pertes par parois | D38: =+D37*D27 -> 340.4119626 | E38: Euro/an | G38: Coût des pertes par parois | I38: =+D27*I37 -> 151.5565049 | J38: Euro/an
B39: Const. de refroidissement | D39: =+D36*24/(D22*(D24-D25)) -> 0.09420560748 | E39: Wh/lit.j.K | G39: Const. de refroidissement | I39: =(I36*24)/(D22*(D24-D25)) -> 0.04194174757 | J39: Wh/lit.j.K
B40: Diminution T° en 24 heures | D40: =+(D36*24)/(D22*1.163) -> 3.645100891 | E40: °C | G40: Diminution T° en 24 heures | I40: =+(I36*24)/(D16*1.163) -> 1.622853517 | J40: °C
E44: Economie sol. 2 / sol. 1 | H44: =+(D38-I38)*30 -> 5665.663733 | I44: Euro/30 ans
E45: Temps de retour | H45: =IF((D38-I38)=0,"-",(I34-D34)/(D38-I38)) -> 0.529505481 | I45: Ans
B48: hypothèse : le coefficient d'échange superficiel a été pris égal à 10 W/K.m² (source AICVF)

Sheet Feuil2
